fUST/lending_fUST_20260118
["ID","MTS","AMOUNT","RATE_DAILY","PERIOD"]
[402523410,1768696233310,-500.0,0.00013392,2]
[402523411,1768696233319,-500.0,0.00013392,2]
[402523412,1768696233328,-500.0,0.00013392,2]
[402523413,1768696233338,-500.0,0.00013392,2]
[402523414,1768696233347,-500.0,0.00013392,2]
[402523415,1768696233358,-500.0,0.00013392,2]
[402523416,1768696233367,-13329.17957474,0.00013393,2]
[402523417,1768696233385,-80755.18579978,0.00013393,2]
[402523418,1768696233396,-2997.86350935,0.00013393,2]
[402523419,1768696233408,-463.96146751,0.00013393,2]
[402523420,1768696233420,-16588.59999995,0.00013393,2]
[402523441,1768696237938,-299.79392215,0.00013391,2]
[402523442,1768696237949,-9698.90396731,0.00013393,2]
[402523443,1768696237961,-5673.50298572,0.00013393,2]
[402523444,1768696238140,-730781.19435657,0.00013393,2]
[402523445,1768696238153,-920.0098551,0.00013393,2]
[402523446,1768696238165,-446.94503474,0.00013393,2]
[402523447,1768696238179,-99875.24347973,0.00013393,2]
[402523448,1768696238191,-1586.21195227,0.00013393,2]
[402523449,1768696238203,-2352.00076887,0.00013393,2]
[402523450,1768696238215,-19283.52023384,0.00013393,2]
[402523451,1768696238227,-1668.75000003,0.00013393,2]
[402523452,1768696238239,-653.5749005,0.00013393,2]
[402523453,1768696238250,-12925.35211399,0.00013393,2]
[402523454,1768696238261,-36587.97795779,0.00013404,2]
[402523455,1768696238271,-639.63503749,0.00013497,2]
[402523456,1768696238282,-424.96,0.00013497,2]
[402523457,1768696238292,-151.0,0.000135,2]
[402523458,1768696238302,-151.0,0.000135,2]
[402523459,1768696238312,-151.0,0.000135,2]
[402523460,1768696238322,-151.0,0.000135,2]
[402523461,1768696238333,-151.0,0.000135,2]
[402523462,1768696238343,-151.0,0.000135,2]
[402523463,1768696238353,-151.0,0.000135,2]
[402523464,1768696238363,-151.0,0.000135,2]
[402523465,1768696238373,-151.0,0.000135,2]
[402523466,1768696238383,-151.0,0.000135,2]
[402523467,1768696238397,-151.0,0.000135,2]
[402523468,1768696238408,-151.0,0.000135,2]
[402523469,1768696238418,-151.0,0.000135,2]
[402523470,1768696238430,-151.0,0.000135,2]
[402523471,1768696238440,-151.0,0.000135,2]
[402523472,1768696238450,-300.0,0.00013673,2]
[402523473,1768696238460,-500.0,0.00013698,2]
[402523474,1768696238469,-500.0,0.00013698,2]
[402523475,1768696238480,-500.0,0.00013698,2]
[402523476,1768696238490,-500.0,0.00013698,2]
[402523477,1768696238500,-500.0,0.00013698,2]
[402523478,1768696238511,-500.0,0.00013698,2]
[402523479,1768696238521,-500.0,0.00013698,2]
[402523480,1768696238531,-500.0,0.00013698,2]
[402523481,1768696238542,-500.0,0.00013698,2]
[402523482,1768696238552,-500.0,0.00013698,2]
[402523483,1768696238562,-500.0,0.00013698,2]
[402523484,1768696238572,-500.0,0.00013698,2]
[402523485,1768696238582,-500.0,0.00013698,2]
[402523486,1768696238592,-500.0,0.00013698,2]
[402523487,1768696238602,-500.0,0.00013698,2]
[402523488,1768696238611,-500.0,0.00013698,2]
[402523489,1768696238621,-500.0,0.00013698,2]
[402523490,1768696238631,-540.43466615,0.00013698,2]
[402523491,1768696238641,-500.0,0.00013698,2]
[402523492,1768696238651,-500.0,0.00013698,2]
[402523493,1768696238661,-500.0,0.00013698,2]
[402523494,1768696238671,-500.0,0.00013698,2]
[402523495,1768696238681,-505.79259852,0.00013698,2]
[402523496,1768696238690,-500.0,0.00013698,2]
[402523497,1768696238700,-500.0,0.00013698,2]
[402523498,1768696238710,-500.0,0.00013698,2]
[402523499,1768696238720,-500.0,0.00013698,2]
[402523500,1768696238730,-500.0,0.00013698,2]
[402523501,1768696238740,-500.0,0.00013698,2]
[402523502,1768696238750,-500.0,0.00013698,2]
[402523503,1768696238760,-500.0,0.00013698,2]
[402523504,1768696238770,-500.0,0.00013698,2]
[402523505,1768696238781,-2916.45,0.00013698,2]
[402523506,1768696238791,-307.48520335,0.00013698,2]
[402523507,1768696238801,-2916.45,0.00013698,2]
[402523508,1768696238811,-2916.45,0.00013698,2]
[402523509,1768696238822,-2916.45,0.00013698,2]
[402523510,1768696238832,-2916.45,0.00013698,2]
[402523511,1768696238842,-2916.45,0.00013698,2]
[402523512,1768696238852,-2916.45,0.00013698,2]
[402523514,1768696238862,-2916.45,0.00013698,2]
[402523516,1768696238872,-2916.45,0.00013698,2]
[402523518,1768696238882,-2916.45,0.00013698,2]
[402523520,1768696238892,-2916.45,0.00013698,2]
[402523522,1768696238903,-2916.45,0.00013698,2]
[402523525,1768696238915,-2916.45,0.00013698,2]
[402523527,1768696238925,-2916.45,0.00013698,2]
[402523529,1768696238936,-2916.45,0.00013698,2]
[402523531,1768696238946,-2916.45,0.00013698,2]
[402523533,1768696238956,-2916.45,0.00013698,2]
[402523535,1768696238966,-2916.45,0.00013698,2]
[402523536,1768696238976,-2916.45,0.00013698,2]
[402523537,1768696238987,-2916.45,0.00013698,2]
[402523538,1768696238997,-2916.45,0.00013698,2]
[402523539,1768696239009,-2916.45,0.00013698,2]
[402523540,1768696239018,-2916.45,0.00013698,2]
[402523541,1768696239030,-2916.63,0.00013698,2]
[402523542,1768696239041,-732.5,0.00013698,2]
[402523543,1768696239051,-732.5,0.00013698,2]
[402523544,1768696239061,-500.0,0.00013699,2]
[402523545,1768696239071,-194.1362209,0.00013699,2]
[402523546,1768696239082,-502.15537152,0.00013699,2]
[402523547,1768696239093,-500.0,0.00013699,2]
[402523548,1768696239103,-500.0,0.00013699,2]
[402523549,1768696239113,-48.14250411,0.00013699,2]
[402523550,1768696239126,-451.85749589,0.00013699,2]
[402523551,1768696239137,-158.0,0.00013699,2]
[402523552,1768696239147,-466.71913911,0.00013699,2]
[402523553,1768696239159,-33.28086089,0.00013699,2]
[402523554,1768696239169,-500.0,0.00013699,2]
[402523555,1768696239179,-500.0,0.00013699,2]
[402523556,1768696239190,-500.0,0.00013699,2]
[402523557,1768696239200,-500.0,0.00013699,2]
[402523558,1768696239211,-500.0,0.00013699,2]
[402523559,1768696239221,-500.0,0.00013699,2]
[402523560,1768696239231,-40.54013911,0.00013699,2]
[402523561,1768696239243,-117.45986089,0.00013699,2]
[402523562,1768696239254,-500.0,0.00013699,2]
[402523563,1768696239263,-897.41,0.0001382,2]
[402523564,1768696239274,-897.41,0.0001382,2]
[402523565,1768696239285,-497.57826006,0.00013821,2]
[402523566,1768696239295,-500.0,0.00013821,2]
[402523567,1768696239305,-1000.0,0.00013821,2]
[402523568,1768696239316,-461.18969111,0.00013922,2]
[402523569,1768696239326,-30773.51684698,0.00014006,2]
[402523570,1768696239339,-3006.72,0.00014006,2]
[402523571,1768696239351,-2739.5793,0.00014006,2]
[402523641,1768696240213,-732.5,0.00013698,2]
[402523643,1768696240223,-195.50674222,0.00013698,2]
[402523911,1768696243133,-536.99325778,0.00013698,2]
[402523913,1768696243143,-732.5,0.00013698,2]
[402523915,1768696243153,-732.5,0.00013698,2]
[402523917,1768696243162,-318.80428014,0.00013698,2]
[402524194,1768696246081,-500.0,0.00013391,2]
[402524196,1768696246091,-630.88855976,0.00013391,2]
[402524198,1768696246101,-109.77810691,0.00013391,2]
[402524200,1768696246112,-390.22189309,0.00013391,2]
[402524202,1768696246122,-500.0,0.00013391,2]
[402524204,1768696246132,-500.0,0.00013391,2]
[402524206,1768696246142,-32.09272442,0.00013391,2]
[402524553,1768696338871,201.55,0.00010927,2]
[402524554,1768696339236,268.74,0.00011768,2]
[402524555,1768696339677,335.92,0.00012608,2]
[402524558,1768696412680,170.77,0.00010932,2]
[402524559,1768696413170,227.69,0.00011773,2]
[402524560,1768696413582,284.62,0.00012614,2]
[402524561,1768696457875,155.0,3e-05,2]
[402524563,1768696486209,201.31,0.00010942,2]
[402524564,1768696486593,268.42,0.00011783,2]
[402524565,1768696486986,335.52,0.00012625,2]
[402524566,1768696560747,170.57,0.00010932,2]
[402524567,1768696561159,227.42,0.00011773,2]
[402524568,1768696561566,284.28,0.00012614,2]
[402524569,1768696634500,220.02,0.00010918,2]
[402524570,1768696634882,293.36,0.00011758,2]
[402524571,1768696635281,366.69,0.00012598,2]
[402524572,1768696679720,208.6,2.997e-05,2]
[402524573,1768696680241,208.6,2.997e-05,2]
[402524574,1768696684822,208.6,2.997e-05,2]
[402524576,1768696709142,186.41,0.0001091,2]
[402524577,1768696709709,248.55,0.00011749,2]
[402524578,1768696710010,310.69,0.00012589,2]
[402524581,1768696780134,455.0,0.00027397,120]
[402524582,1768696783620,157.94,0.00010935,2]
[402524583,1768696784025,210.59,0.00011777,2]
[402524584,1768696784422,263.24,0.00012618,2]
[402524585,1768696856177,152.13,0.0001005,2]
[402524586,1768696856743,228.2,0.00010888,2]
[402524587,1768696857139,304.26,0.00011726,2]
[402524588,1768696857569,380.33,0.00012563,2]
[402524589,1768696878724,1444.0,0.00026137,120]
[402524590,1768696931385,187.53,0.00010943,2]
[402524591,1768696931788,250.05,0.00011785,2]
[402524592,1768696932199,312.56,0.00012627,2]
[402524593,1768697005208,158.89,0.00010943,2]
[402524594,1768697005605,211.86,0.00011785,2]
[402524595,1768697006150,264.82,0.00012627,2]
[402524596,1768697067629,6917.61,0.00012276,2]
[402524597,1768697067651,10000.01,0.00012276,2]
[402524598,1768697067673,10000.01,0.00012276,2]
[402524599,1768697067695,10000.01,0.00012276,2]
[402524600,1768697067719,10000.01,0.00012276,2]
[402524601,1768697067741,10000.01,0.00012276,2]
[402524602,1768697067764,10000.01,0.00012276,2]
[402524603,1768697067790,6599.5604074,0.00012276,2]
[402524604,1768697077989,313.96,9.282e-05,2]
[402524605,1768697078414,627.92,0.00010126,2]
[402524606,1768697078812,941.88,0.0001097,2]
[402524607,1768697079254,1255.83,0.00011813,2]
[402524608,1768697079689,260.8595926,0.00012657,2]
[402524609,1768697079715,1308.9304074,0.00012657,2]
[402524610,1768697156677,523.92,9.243e-05,2]
[402524611,1768697157096,1047.84,0.00010083,2]
[402524612,1768697157518,1571.75,0.00010923,2]
[402524613,1768697157933,2095.67,0.00011764,2]
[402524614,1768697158507,2619.59,0.00012604,2]
[402524615,1768697235825,529.23,9.243e-05,2]
[402524616,1768697236257,303.0795926,0.00010083,2]
[402524617,1768697236285,755.3804074,0.00010083,2]
[402524618,1768697236643,1587.68,0.00010923,2]
[402524619,1768697237098,2116.91,0.00011764,2]
[402524620,1768697237662,2646.14,0.00012604,2]
[402524621,1768697262655,200000.0,0.00027397,120]
[402524622,1768697316461,529.97,9.224e-05,2]
[402524623,1768697317408,1059.95,0.00010062,2]
[402524624,1768697317832,1303.9795926,0.00010901,2]
[402524625,1768697317857,285.9404074,0.00010901,2]
[402524626,1768697318347,2119.89,0.00011739,2]
[402524627,1768697318791,2649.87,0.00012578,2]
[402524628,1768697397432,467.39,9.225e-05,2]
[402524629,1768697397832,934.78,0.00010064,2]
[402524630,1768697398222,1402.17,0.00010903,2]
[402524631,1768697398614,1869.56,0.00011741,2]
[402524632,1768697399009,270.4095926,0.0001258,2]
[402524633,1768697399034,2066.5404074,0.0001258,2]
[402524662,1768697431733,-151.21,0.00013026,2]
[402524665,1768697431743,-193.57409301,0.0001307,2]
[402524666,1768697431752,-300.0,0.00013189,2]
[402524668,1768697431761,-300.0,0.00013189,2]
[402524670,1768697431771,-297.0,0.00013189,2]
[402524672,1768697431780,-1200.0,0.00013189,2]
[402524674,1768697431789,-5571.08553089,0.0001319,2]
[402524677,1768697431801,-3212.09497955,0.0001319,2]
[402524679,1768697431812,-637.20732441,0.0001319,2]
[402524681,1768697431823,-21253.87021428,0.0001319,2]
[402524683,1768697431839,-1228.67557463,0.0001319,2]
[402524685,1768697431851,-1113.68375377,0.0001319,2]
[402524706,1768697437849,-1683.85927211,0.0001319,2]
[402524712,1768697437900,-438.41934811,0.0001319,2]
[402524715,1768697437918,-2352.66555495,0.0001319,2]
[402524720,1768697437957,-2246.8077548,0.0001319,2]
[402524722,1768697437968,-960261.6306925,0.0001319,2]
[402524724,1768697437978,-500.0,0.00013194,2]
[402524726,1768697437987,-216.87484314,0.00013194,2]
[402524728,1768697437997,-2166.82488347,0.000132,2]
[402524730,1768697438006,-300.0,0.00013271,2]
[402524732,1768697438015,-500.0,0.00013273,2]
[402524734,1768697438024,-548.42774026,0.00013273,2]
[402524736,1768697438033,-264.52944169,0.00013273,2]
[402524738,1768697438043,-500.0,0.00013273,2]
[402524740,1768697438054,-500.0,0.00013273,2]
[402524742,1768697438064,-500.57249055,0.00013273,2]
[402524744,1768697438074,-500.0,0.00013273,2]
[402524746,1768697438084,-298.50294676,0.00013273,2]
[402524748,1768697438094,-500.0,0.00013273,2]
[402524750,1768697438103,-500.0,0.00013273,2]
[402524752,1768697438113,-336.65181429,0.00013273,2]
[402524754,1768697438122,-161.98565488,0.00013273,2]
[402524755,1768697438131,-500.0,0.00013273,2]
[402524757,1768697438140,-500.0,0.00013273,2]
[402524759,1768697438150,-218.21006208,0.00013273,2]
[402524761,1768697438159,-165.7395286,0.00013273,2]
[402524763,1768697438169,-500.0,0.00013273,2]
[402524765,1768697438179,-500.21062387,0.00013273,2]
[402524767,1768697438189,-500.0,0.00013273,2]
[402524770,1768697438199,-500.0,0.00013273,2]
[402524772,1768697438209,-500.0,0.00013273,2]
[402524774,1768697438218,-500.32059538,0.00013273,2]
[402524775,1768697438228,-283.71991336,0.00013273,2]
[402524777,1768697438238,-500.0,0.00013273,2]
[402524779,1768697438248,-500.0,0.00013273,2]
[402524781,1768697438258,-217.32775629,0.00013273,2]
[402524783,1768697438269,-500.0,0.00013273,2]
[402524785,1768697438279,-500.0,0.00013273,2]
[402524787,1768697438288,-500.0,0.00013273,2]
[402524789,1768697438298,-500.0,0.00013273,2]
[402524791,1768697438308,-500.0,0.00013273,2]
[402524794,1768697438318,-500.89599036,0.00013273,2]
[402524795,1768697438327,-500.0,0.00013273,2]
[402524797,1768697438336,-500.0,0.00013273,2]
[402524799,1768697438349,-500.0,0.00013273,2]
[402524801,1768697438359,-171.81254267,0.00013273,2]
[402524803,1768697438370,-500.0,0.00013273,2]
[402524804,1768697438380,-304.59,0.00013273,2]
[402524805,1768697438389,-156.33034165,0.00013273,2]
[402524806,1768697438400,-500.0,0.00013273,2]
[402524807,1768697438410,-241.51810309,0.00013291,2]
[402524808,1768697438420,-151.0,0.000133,2]
[402524809,1768697438430,-151.0,0.000133,2]
[402524826,1768697438730,-500.0,0.00013331,2]
[402524828,1768697438741,-2804.34,0.00013419,2]
[402524830,1768697438751,-500.0,0.00013423,2]
[402524832,1768697438761,-500.0,0.00013423,2]
[402524834,1768697438771,-200.0,0.00013423,2]
[402524836,1768697438781,-500.0,0.00013423,2]
[402524838,1768697438791,-500.0,0.00013468,2]
[402524840,1768697438800,-163.51793902,0.00013468,2]
[402524842,1768697438810,-1882.41272042,0.00013468,2]
[402524844,1768697438820,-500.0,0.00013547,2]
[402524846,1768697438837,-500.0,0.0001356,2]
[402524848,1768697438846,-500.0,0.0001356,2]
[402524850,1768697438856,-500.0,0.0001356,2]
[402524852,1768697438867,-500.0,0.00013605,2]
[402524854,1768697438878,-318.0,0.00013644,2]
[402524856,1768697438888,-300.0,0.00013673,2]
[402524858,1768697438898,-295.7630174,0.00013697,2]
[402524860,1768697438910,-500.0,0.00013697,2]
[402524862,1768697438920,-500.0,0.00013697,2]
[402524864,1768697438930,-500.0,0.00013697,2]
[402524866,1768697438940,-500.0,0.00013697,2]
[402524868,1768697438949,-499.08422533,0.00013698,2]
[402524870,1768697438959,-1125.11,0.00013698,2]
[402524872,1768697438969,-1125.11,0.00013698,2]
[402524874,1768697438980,-1125.11,0.00013698,2]
[402524877,1768697438990,-1125.11,0.00013698,2]
[402524879,1768697438999,-1125.11,0.00013698,2]
[402524881,1768697439010,-1125.11,0.00013698,2]
[402524882,1768697439019,-1125.11,0.00013698,2]
[402524885,1768697439030,-1125.11,0.00013698,2]
[402524887,1768697439039,-1125.11,0.00013698,2]
[402524889,1768697439050,-1125.11,0.00013698,2]
[402524891,1768697439060,-1125.11,0.00013698,2]
[402524893,1768697439070,-1125.11,0.00013698,2]
[402524894,1768697439081,-1125.11,0.00013698,2]
[402524896,1768697439091,-1125.11,0.00013698,2]
[402524898,1768697439102,-1125.11,0.00013698,2]
[402524901,1768697439112,-1125.11,0.00013698,2]
[402524903,1768697439123,-1125.11,0.00013698,2]
[402524905,1768697439133,-1125.11,0.00013698,2]
[402524906,1768697439142,-1125.11,0.00013698,2]
[402524909,1768697439152,-1125.11,0.00013698,2]
[402524911,1768697439162,-1125.11,0.00013698,2]
[402524913,1768697439171,-1125.11,0.00013698,2]
[402524915,1768697439181,-1125.11,0.00013698,2]
[402524917,1768697439191,-1125.26885637,0.00013698,2]
[402524919,1768697439200,-536.09,0.00013698,2]
[402524921,1768697439210,-536.09,0.00013698,2]
[402524923,1768697439219,-536.09,0.00013698,2]
[402524925,1768697439229,-536.09,0.00013698,2]
[402524927,1768697439239,-536.09,0.00013698,2]
[402524929,1768697439249,-536.09,0.00013698,2]
[402524931,1768697439258,-536.09,0.00013698,2]
[402524933,1768697439270,-536.09,0.00013698,2]
[402524935,1768697439281,-536.09,0.00013698,2]
[402524937,1768697439291,-536.09,0.00013698,2]
[402524939,1768697439301,-536.09,0.00013698,2]
[402524941,1768697439310,-536.09,0.00013698,2]
[402524943,1768697439320,-536.09,0.00013698,2]
[402524945,1768697439329,-536.09,0.00013698,2]
[402524947,1768697439338,-536.09,0.00013698,2]
[402524949,1768697439348,-536.09,0.00013698,2]
[402524951,1768697439358,-536.09,0.00013698,2]
[402524953,1768697439368,-536.09,0.00013698,2]
[402524955,1768697439377,-536.09,0.00013698,2]
[402524957,1768697439387,-536.09,0.00013698,2]
[402524959,1768697439396,-536.09,0.00013698,2]
[402524961,1768697439405,-536.09,0.00013698,2]
[402524963,1768697439414,-536.09,0.00013698,2]
[402524965,1768697439424,-536.30839261,0.00013698,2]
[402524966,1768697439433,-822.63,0.00013698,2]
[402524969,1768697439443,-822.63,0.00013698,2]
[402524970,1768697439454,-822.63,0.00013698,2]
[402524972,1768697439463,-822.63,0.00013698,2]
[402524974,1768697439472,-822.63,0.00013698,2]
[402524976,1768697439482,-822.63,0.00013698,2]
[402524978,1768697439492,-822.63,0.00013698,2]
[402524981,1768697439502,-822.63,0.00013698,2]
[402524983,1768697439511,-822.63,0.00013698,2]
[402524985,1768697439521,-822.63,0.00013698,2]
[402524987,1768697439531,-822.63,0.00013698,2]
[402524990,1768697439540,-822.63,0.00013698,2]
[402524992,1768697439550,-822.63,0.00013698,2]
[402524993,1768697439559,-822.63,0.00013698,2]
[402524996,1768697439569,-822.63,0.00013698,2]
[402524998,1768697439579,-822.63,0.00013698,2]
[402525001,1768697439591,-822.63,0.00013698,2]
[402525003,1768697439601,-822.63,0.00013698,2]
[402525005,1768697439610,-1000.0,0.00013699,2]
[402525007,1768697439620,-312.88583579,0.00013699,2]
[402525009,1768697439630,-500.0,0.00013699,2]
[402525011,1768697439640,-500.0,0.00013699,2]
[402525013,1768697439649,-500.0,0.00013699,2]
[402525015,1768697439659,-500.0,0.00013699,2]
[402525017,1768697439668,-500.0,0.00013699,2]
[402525019,1768697439678,-377.8688684,0.000137,2]
[402525021,1768697439687,-500.0,0.00013742,2]
[402525023,1768697439697,-1000.0,0.00013821,2]
[402525025,1768697439706,-500.0,0.00013834,2]
[402525027,1768697439715,-500.0,0.00013834,2]
[402525029,1768697439725,-926.22446,0.00013844,2]
[402525031,1768697439734,-38335.4362424,0.00013844,2]
[402525033,1768697439743,-176.7211808,0.00013844,2]
[402525035,1768697439753,-2931.37797116,0.00013845,7]
[402525037,1768697439762,-3075.20010217,0.00013845,7]
[402525039,1768697439771,-500.0,0.00013971,2]
[402525041,1768697439780,-500.0,0.00013971,2]
[402525043,1768697439790,-2166.82488347,0.00013985,2]
[402525045,1768697439799,-63480.18385302,0.00014006,2]
[402525047,1768697439808,-500.0,0.00014108,2]
[402525049,1768697439817,-600.0,0.00014221,2]
[402525051,1768697439831,-500.0,0.00014245,2]
[402525053,1768697439840,-583.81618829,0.00014247,2]
[402525055,1768697439850,-206.13735223,0.00014247,2]
[402525057,1768697439859,-1000.0,0.00014247,2]
[402525059,1768697439868,-191.91358796,0.00014247,2]
[402525061,1768697439878,-1000.0,0.00014247,2]
[402525063,1768697439888,-3271.73,0.00014257,2]
[402525065,1768697439897,-1460.22,0.00014268,2]
[402525066,1768697439907,-1186.52509791,0.00014368,2]
[402525069,1768697439917,-389.0,0.00014382,2]
[402525071,1768697439928,-420.0,0.00014462,2]
[402525073,1768697439939,-515.0,0.00014508,2]
[402525075,1768697439948,-303.86573033,0.00014768,2]
[402525077,1768697439958,-2166.82488347,0.00014769,2]
[402525079,1768697439967,-1500.0,0.00014795,2]
[402525081,1768697439977,-1500.0,0.00014795,2]
[402525083,1768697439986,-10000.0,0.00015057,2]
[402525085,1768697439998,-288.26114,0.00015068,2]
[402525087,1768697440008,-228.41742976,0.0001507,2]
[402525089,1768697440017,-377.8688684,0.00015096,2]
[402525091,1768697440027,-377.8688684,0.00015096,2]
[402525093,1768697440036,-3739.12,0.00015096,2]
[402525095,1768697440046,-10000.0,0.00015114,2]
[402525097,1768697440055,-10000.0,0.00015114,2]
[402525099,1768697440064,-10000.0,0.00015114,2]
[402525101,1768697440074,-2419.59,0.00015114,2]
[402525103,1768697440083,-311.85701,0.00015115,2]
[402525105,1768697440092,-151.0,0.00015115,2]
[402525107,1768697440101,-445.202766,0.00015115,2]
[402525109,1768697440110,-500.0,0.00015115,2]
[402525111,1768697440120,-343.03408281,0.00015115,2]
[402525113,1768697440129,-162.380719,0.00015115,2]
[402525115,1768697440139,-500.0,0.00015115,2]
[402525117,1768697440148,-168.3888056,0.00015115,2]
[402525119,1768697440158,-500.0,0.00015115,2]
[402525121,1768697440167,-1957.856,0.00015115,2]
[402525123,1768697440177,-500.0,0.00015115,2]
[402525125,1768697440186,-174.61919141,0.00015115,2]
[402525127,1768697440196,-500.0,0.00015115,2]
[402525129,1768697440206,-181.08010149,0.00015115,2]
[402525131,1768697440215,-500.0,0.00015115,2]
[402525133,1768697440225,-187.78006525,0.00015115,2]
[402525135,1768697440234,-500.0,0.00015115,2]
[402525137,1768697440244,-194.72792766,0.00015115,2]
[402525139,1768697440253,-500.0,0.00015115,2]
[402525141,1768697440263,-201.93286099,0.00015115,2]
[402525143,1768697440273,-500.0,0.00015115,2]
[402525145,1768697440282,-209.40437684,0.00015115,2]
[402525147,1768697440293,-162.380719,0.00015115,2]
[402525149,1768697440303,-500.0,0.00015115,2]
[402525151,1768697440312,-217.15233878,0.00015115,2]
[402525153,1768697440323,-500.0,0.00015115,2]
[402525155,1768697440333,-225.18697532,0.00015115,2]
[402525157,1768697440342,-500.0,0.00015115,2]
[402525159,1768697440351,-233.51889341,0.00015115,2]
[402525162,1768697440361,-500.0,0.00015115,2]
[402525165,1768697440371,-242.15909246,0.00015115,2]
[402525168,1768697440381,-500.0,0.00015115,2]
[402525170,1768697440390,-251.11897888,0.00015115,2]
[402525172,1768697440399,-500.0,0.00015115,2]
[402525174,1768697440409,-260.4103811,0.00015115,2]
[402525176,1768697440418,-500.0,0.00015115,2]
[402525178,1768697440427,-270.0455652,0.00015115,2]
[402525180,1768697440436,-425.70854638,0.00015115,2]
[402525182,1768697440445,-280.03725112,0.00015115,2]
[402525184,1768697440454,-290.39862941,0.00015115,2]
[402525186,1768697440466,-301.1433787,0.00015115,2]
[402525187,1768697440475,-888.0,0.00015115,2]
[402525189,1768697440484,-216.4475463,0.00015115,2]
[402525191,1768697440493,-2150.738,0.00015115,2]
[402525193,1768697440503,-2030.296672,0.0001517,2]
[402525195,1768697440514,-2105.41764886,0.00015225,2]
[402525198,1768697440523,-2183.31810187,0.0001528,2]
[402525200,1768697440533,-1041.66666667,0.00015288,2]
[402525203,1768697440550,-2264.10087164,0.00015335,2]
[402525205,1768697440565,-3000.0,0.00015342,2]
[402525207,1768697440575,-2000.0,0.00015342,2]
[402525209,1768697440584,-503.66607308,0.00015342,2]
[402525211,1768697440594,-1498.58969849,0.0001539,2]
[402525213,1768697440604,-377.8688684,0.00015534,2]
[402525215,1768697440614,-377.8688684,0.00015534,2]
[402525217,1768697440624,-377.8688684,0.00015534,2]
[402525219,1768697440634,-2166.82488347,0.00015554,2]
[402525222,1768697440644,-377.8688684,0.00015616,2]
[402525224,1768697440654,-377.8688684,0.00015616,2]
[402525226,1768697440664,-461.67526834,0.00015663,2]
[402525228,1768697440674,-168.3888056,0.00015663,2]
[402525230,1768697440684,-2230.315306,0.00015663,2]
[402525232,1768697440694,-587.0,0.00015857,2]
[402525234,1768697440704,-377.8688684,0.0001589,2]
[402525236,1768697440715,-377.8688684,0.0001589,2]
[402525238,1768697440724,-377.8688684,0.0001589,2]
[402525240,1768697440735,-2004.21199472,0.0001589,2]
[402525243,1768697440745,-8553.7920281,0.0001591,2]
[402525245,1768697440755,-4206.51,0.00015934,2]
[402525247,1768697440765,-298.0,0.00016125,2]
[402525249,1768697440775,-298.0,0.00016178,2]
[402525251,1768697440786,-435.58441485,0.00016185,2]
[402525253,1768697440796,-1742.3376594,0.00016185,2]
[402525255,1768697440806,-3920.25973365,0.00016185,2]
[402525257,1768697440816,-6969.3506376,0.00016185,2]
[402525259,1768697440828,-1821.36233342,0.00016185,2]
[402525261,1768697440842,-4098.0652502,0.00016185,2]
[402525263,1768697440852,-7285.44933369,0.00016185,2]
[402525265,1768697440861,-478.75725327,0.00016211,2]
[402525268,1768697440871,-174.61919141,0.00016211,2]
[402525269,1768697440882,-2312.83697232,0.00016211,2]